fUSD/lending_fUSD_20251123
["ID","MTS","AMOUNT","RATE_DAILY","PERIOD"]
[394687079,1763887831807,-2500.0,0.00015881,2]
[394687081,1763887831816,-3678.84217662,0.00015897,2]
[394687083,1763887831826,-300.0,0.00015971,2]
[394687085,1763887831835,-151.0,0.00015972,2]
[394687087,1763887831844,-151.0,0.00015972,2]
[394687089,1763887831854,-151.0,0.00015972,2]
[394687092,1763887831863,-151.0,0.00015972,2]
[394687094,1763887831872,-151.0,0.00015972,2]
[394687097,1763887831882,-151.0,0.00015972,2]
[394687100,1763887831891,-151.0,0.00015972,2]
[394687101,1763887831900,-151.0,0.00015972,2]
[394687103,1763887831910,-151.0,0.00015972,2]
[394687105,1763887831919,-151.0,0.00015972,2]
[394687107,1763887831928,-151.0,0.00015972,2]
[394687109,1763887831938,-151.0,0.00015972,2]
[394687110,1763887831947,-151.0,0.00015972,2]
[394687111,1763887831957,-151.0,0.00015972,2]
[394687112,1763887831966,-151.0,0.00015972,2]
[394687113,1763887831976,-151.0,0.00015972,2]
[394687114,1763887831986,-151.0,0.00015972,2]
[394687115,1763887831996,-151.0,0.00015972,2]
[394687116,1763887832005,-500.0,0.00015972,2]
[394687117,1763887832015,-274.31434017,0.00015972,2]
[394687118,1763887832024,-545.14,0.00015972,2]
[394687119,1763887832033,-151.0,0.00015978,2]
[394687120,1763887832042,-500.0,0.0001598,2]
[394687121,1763887832051,-500.0,0.0001598,2]
[394687122,1763887832061,-500.0,0.0001598,2]
[394687123,1763887832070,-500.0,0.0001598,2]
[394687124,1763887832080,-509.57170512,0.0001598,2]
[394687125,1763887832089,-500.0,0.0001598,2]
[394687126,1763887832099,-500.0,0.0001598,2]
[394687127,1763887832108,-216.85970099,0.0001598,2]
[394687128,1763887832118,-500.0,0.0001598,2]
[394687129,1763887832128,-528.1685582,0.0001598,2]
[394687130,1763887832138,-500.0,0.0001598,2]
[394687131,1763887832147,-1.62340785,0.0001598,2]
[394687132,1763887832159,-498.37659215,0.0001598,2]
[394687133,1763887832169,-500.0,0.0001598,2]
[394687134,1763887832179,-500.0,0.0001598,2]
[394687135,1763887832188,-500.0,0.0001598,2]
[394687136,1763887832198,-500.0,0.0001598,2]
[394687137,1763887832207,-500.0,0.0001598,2]
[394687138,1763887832216,-500.0,0.0001598,2]
[394687139,1763887832226,-500.0,0.0001598,2]
[394687140,1763887832236,-500.0,0.0001598,2]
[394687141,1763887832245,-3687.7017463,0.00015981,2]
[394687142,1763887832255,-194.3733654,0.00015981,2]
[394687143,1763887832266,-527.60692555,0.00015997,2]
[394687144,1763887832277,-500.0,0.00015997,2]
[394687145,1763887832288,-500.0,0.00015997,2]
[394687146,1763887832297,-500.0,0.00015997,2]
[394687147,1763887832307,-500.0,0.00015997,2]
[394687148,1763887832318,-500.0,0.00015997,2]
[394687149,1763887832328,-500.0,0.00015997,2]
[394687150,1763887832337,-500.0,0.00015997,2]
[394687151,1763887832346,-511.34217429,0.00015997,2]
[394687152,1763887832356,-150.0,0.00015997,2]
[394687153,1763887832365,-500.0,0.00015997,2]
[394687154,1763887832374,-500.0,0.00015997,2]
[394687155,1763887832384,-500.0,0.00015997,2]
[394687156,1763887832393,-500.0,0.00015997,2]
[394687157,1763887832403,-150.0,0.00015997,2]
[394687158,1763887832413,-500.0,0.00015997,2]
[394687159,1763887832423,-500.0,0.00015997,2]
[394687160,1763887832432,-150.0,0.00015997,2]
[394687161,1763887832442,-150.0,0.00015997,2]
[394687162,1763887832451,-500.0,0.00015997,2]
[394687163,1763887832461,-150.0,0.00015997,2]
[394687164,1763887832470,-500.0,0.00015997,2]
[394687165,1763887832479,-150.0,0.00015997,2]
[394687166,1763887832488,-500.0,0.00015997,2]
[394687167,1763887832496,-500.0,0.00015997,2]
[394687168,1763887832505,-1600.4253,0.00015998,2]
[394687169,1763887832515,-1000.0,0.00016,2]
[394687170,1763887832524,-1000.0,0.00016,2]
[394687171,1763887832533,-1000.0,0.00016,2]
[394687172,1763887832542,-142.01772877,0.00016,2]
[394687173,1763887832555,-857.98227123,0.00016,2]
[394687174,1763887832566,-1000.0,0.00016,2]
[394687175,1763887832576,-1000.0,0.00016,2]
[394687176,1763887832586,-1000.0,0.00016,2]
[394687177,1763887832595,-1000.0,0.00016,2]
[394687178,1763887832605,-1000.0,0.00016,2]
[394687179,1763887832615,-268.403,0.00016,2]
[394687180,1763887832625,-1000.0,0.00016,2]
[394687181,1763887832634,-1000.0,0.00016,2]
[394687182,1763887832643,-1000.0,0.00016,2]
[394687183,1763887832652,-1000.0,0.00016,2]
[394687184,1763887832661,-1000.0,0.00016,2]
[394687185,1763887832671,-1000.0,0.00016,2]
[394687186,1763887832681,-550.28724466,0.00016,2]
[394687187,1763887832704,-449.71275534,0.00016,2]
[394687188,1763887832714,-137.5923114,0.00016,2]
[394687189,1763887832725,-716.66,0.00016,2]
[394687190,1763887832761,-145.7476886,0.00016,2]
[394687191,1763887832770,-700.2523114,0.00016,2]
[394687192,1763887837417,-299.7476886,0.00016,2]
[394687193,1763887837428,-1000.0,0.00016,2]
[394687194,1763887837437,-1000.0,0.00016,2]
[394687195,1763887837447,-458.44496139,0.00016,2]
[394687196,1763887837524,-541.55503861,0.00016,2]
[394687197,1763887837533,-437.88537233,0.00016,2]
[394687198,1763887837682,-562.11462767,0.00016,2]
[394687199,1763887837691,-1000.0,0.00016,2]
[394687200,1763887837700,-615.51355978,0.00016,2]
[394687206,1763887839462,-384.48644022,0.00016,2]
[394687207,1763887839471,-1000.0,0.00016,2]
[394687208,1763887839481,-1000.0,0.00016,2]
[394687209,1763887839490,-1000.0,0.00016,2]
[394687210,1763887839499,-1000.0,0.00016,2]
[394687211,1763887839508,-1000.0,0.00016,2]
[394687212,1763887839518,-1000.0,0.00016,2]
[394687213,1763887839527,-1000.0,0.00016,2]
[394687214,1763887839536,-257.203,0.00016,2]
[394687215,1763887839545,-1918.912,0.00016007,2]
[394687216,1763887839554,-500.0,0.00016007,2]
[394687217,1763887839564,-19939.36315978,0.0001602,2]
[394687218,1763887839580,-12000.40631432,0.0001602,2]
[394687219,1763887839589,-3937.9958587,0.0001602,2]
[394687220,1763887839730,-194.34700284,0.00016053,2]
[394687221,1763887839739,-620.0,0.00016053,2]
[394687222,1763887839748,-4204.68415718,0.00016053,2]
[394687223,1763887839758,-731.06836987,0.00016053,2]
[394687224,1763887839767,-500.0,0.00016053,2]
[394687225,1763887839775,-565.18298562,0.00016053,2]
[394687226,1763887839784,-1500.0,0.00016053,2]
[394687227,1763887839793,-1500.0,0.00016053,2]
[394687228,1763887839802,-1500.0,0.00016053,2]
[394687229,1763887839811,-1500.0,0.00016053,2]
[394687230,1763887839820,-1500.0,0.00016053,2]
[394687231,1763887839831,-1500.0,0.00016053,2]
[394687233,1763887839840,-1500.0,0.00016053,2]
[394687235,1763887839849,-1500.0,0.00016053,2]
[394687237,1763887839858,-578.20924308,0.00016053,2]
[394687239,1763887839867,-1040.15055139,0.00016053,2]
[394687241,1763887839876,-4492.01758635,0.00016053,2]
[394687243,1763887839885,-574.12855637,0.00016053,2]
[394687245,1763887839894,-500.0,0.00016053,2]
[394687247,1763887839903,-500.0,0.00016053,2]
[394687249,1763887839912,-500.0,0.00016053,2]
[394687251,1763887839920,-500.0,0.00016053,2]
[394687253,1763887839929,-500.0,0.00016053,2]
[394687255,1763887839938,-500.0,0.00016053,2]
[394687257,1763887839948,-500.0,0.00016053,2]
[394687259,1763887839957,-500.0,0.00016053,2]
[394687261,1763887839966,-500.0,0.00016053,2]
[394687263,1763887839976,-500.0,0.00016053,2]
[394687265,1763887839985,-500.0,0.00016053,2]
[394687267,1763887839995,-500.0,0.00016053,2]
[394687269,1763887840004,-500.0,0.00016053,2]
[394687271,1763887840013,-500.0,0.00016053,2]
[394687273,1763887840022,-500.0,0.00016053,2]
[394687275,1763887840031,-500.0,0.00016053,2]
[394687277,1763887840040,-500.0,0.00016053,2]
[394687279,1763887840049,-500.0,0.00016053,2]
[394687281,1763887840058,-500.0,0.00016053,2]
[394687283,1763887840068,-500.0,0.00016053,2]
[394687285,1763887840077,-500.0,0.00016053,2]
[394687287,1763887840086,-637.84129171,0.00016053,2]
[394687289,1763887840094,-219.39303,0.00016053,2]
[394687291,1763887840103,-701.32,0.00016071,2]
[394687293,1763887840112,-122850.71777355,0.00016081,2]
[394687295,1763887840122,-151.0,0.00016081,2]
[394687297,1763887840131,-1431.01152,0.00016081,2]
[394687298,1763887840140,-151.0,0.00016081,2]
[394687299,1763887840149,-285.86158458,0.00016081,2]
[394687300,1763887840158,-151.0,0.00016081,2]
[394687301,1763887840167,-155.093405,0.00016081,2]
[394687302,1763887840176,-261.028534,0.00016081,2]
[394687303,1763887840186,-261.028534,0.00016081,2]
[394687304,1763887840196,-261.028534,0.00016081,2]
[394687305,1763887840204,-261.028534,0.00016081,2]
[394687306,1763887840214,-219.39303,0.00016081,2]
[394687307,1763887840224,-150.0,0.00016088,2]
[394687308,1763887840233,-150.84753655,0.00016088,2]
[394687309,1763887840242,-150.0,0.00016088,2]
[394687310,1763887840251,-150.0,0.00016088,2]
[394687311,1763887840260,-500.0,0.00016088,2]
[394687312,1763887840270,-500.0,0.00016088,2]
[394687313,1763887840282,-150.0,0.00016088,2]
[394687314,1763887840291,-150.0,0.00016088,2]
[394687315,1763887840301,-500.0,0.00016088,2]
[394687316,1763887840311,-150.0,0.00016088,2]
[394687317,1763887840321,-185.61824962,0.00016097,5]
[394687318,1763887840330,-150.0,0.00016097,2]
[394687319,1763887840339,-150.0,0.00016097,2]
[394687320,1763887840349,-150.0,0.00016097,2]
[394687321,1763887840359,-150.0,0.00016097,2]
[394687322,1763887840368,-150.0,0.00016097,2]
[394687323,1763887840378,-500.0,0.00016097,2]
[394687324,1763887840387,-150.0,0.00016097,2]
[394687325,1763887840396,-150.0,0.00016097,2]
[394687326,1763887840405,-150.0,0.00016097,2]
[394687327,1763887840414,-198.2572427,0.00016097,2]
[394687328,1763887840424,-150.0,0.00016097,2]
[394687329,1763887840434,-150.0,0.00016097,2]
[394687330,1763887840443,-521.26814515,0.00016097,2]
[394687331,1763887840452,-500.0,0.00016097,2]
[394687332,1763887840463,-500.0,0.00016097,2]
[394687333,1763887840473,-500.0,0.00016097,2]
[394687334,1763887840483,-500.0,0.00016097,2]
[394687335,1763887840493,-500.0,0.00016097,2]
[394687336,1763887840502,-200.0,0.00016098,2]
[394687337,1763887840512,-154.783911,0.00016098,2]
[394687338,1763887840521,-1244.28644549,0.00016098,2]
[394687339,1763887840530,-9136.92,0.00016116,2]
[394687340,1763887840539,-1114.06,0.00016116,2]
[394687341,1763887840549,-256.21,0.00016116,2]
[394687342,1763887840561,-150.0,0.00016134,2]
[394687343,1763887840571,-500.0,0.00016134,2]
[394687344,1763887840582,-500.0,0.00016134,2]
[394687345,1763887840592,-500.0,0.00016134,2]
[394687346,1763887840602,-500.0,0.00016134,2]
[394687347,1763887840612,-152.71068168,0.00016134,2]
[394687348,1763887840621,-500.0,0.00016134,2]
[394687349,1763887840631,-500.0,0.00016134,2]
[394687350,1763887840641,-150.0,0.00016134,2]
[394687351,1763887840650,-500.0,0.00016134,2]
[394687352,1763887840660,-408.13891343,0.00016134,2]
[394687353,1763887840669,-500.0,0.00016134,2]
[394687354,1763887840678,-500.0,0.00016134,2]
[394687355,1763887840688,-500.0,0.00016144,2]
[394687356,1763887840697,-500.0,0.00016198,2]
[394687357,1763887840706,-500.0,0.00016198,2]
[394687358,1763887840715,-968.27969888,0.00016198,2]
[394687359,1763887840725,-195.0,0.00016199,2]
[394687360,1763887840738,-250.0,0.00016199,2]
[394687361,1763887840748,-195.0,0.00016199,2]
[394687362,1763887840757,-195.0,0.00016199,2]
[394687363,1763887840765,-250.0,0.00016199,2]
[394687364,1763887840775,-193.53006691,0.00016199,2]
[394687365,1763887840784,-300.0,0.00016199,2]
[394687366,1763887840793,-1000.0,0.00016199,2]
[394687367,1763887840802,-1000.0,0.00016199,2]
[394687368,1763887840811,-1000.0,0.00016199,2]
[394687369,1763887840820,-1000.0,0.00016199,2]
[394687370,1763887840830,-1000.0,0.00016199,2]
[394687371,1763887840839,-1000.0,0.00016199,2]
[394687372,1763887840850,-1000.0,0.00016199,2]
[394687373,1763887840860,-1000.0,0.00016199,2]
[394687374,1763887840872,-1000.0,0.00016199,2]
[394687375,1763887840881,-1000.0,0.00016199,2]
[394687376,1763887840891,-1000.0,0.00016199,2]
[394687377,1763887840899,-1000.0,0.00016199,2]
[394687378,1763887840909,-1000.0,0.00016199,2]
[394687379,1763887840919,-1000.0,0.00016199,2]
[394687380,1763887840929,-1000.0,0.00016199,2]
[394687381,1763887840938,-1000.0,0.00016199,2]
[394687382,1763887840947,-1000.0,0.00016199,2]
[394687383,1763887840956,-1000.0,0.00016199,2]
[394687384,1763887840965,-1000.0,0.00016199,2]
[394687385,1763887840974,-1000.0,0.00016199,2]
[394687386,1763887840983,-1000.0,0.00016199,2]
[394687387,1763887840993,-1000.0,0.00016199,2]
[394687388,1763887841003,-1000.0,0.00016199,2]
[394687389,1763887841012,-1000.0,0.00016199,2]
[394687390,1763887841022,-1000.0,0.00016199,2]
[394687391,1763887841031,-1000.0,0.00016199,2]
[394687392,1763887841040,-1000.0,0.00016199,2]
[394687393,1763887841051,-1000.0,0.00016199,2]
[394687394,1763887841062,-1000.0,0.00016199,2]
[394687395,1763887841072,-648.59773759,0.00016199,2]
[394687396,1763887841083,-151.0,0.00016199,2]
[394687397,1763887841093,-151.0,0.00016199,2]
[394687398,1763887841103,-261.028534,0.00016199,2]
[394687399,1763887841113,-261.028534,0.00016199,2]
[394687400,1763887841123,-261.028534,0.00016199,2]
[394687401,1763887841132,-261.028534,0.00016199,2]
[394687402,1763887841143,-219.39303,0.00016199,2]
[394687403,1763887841153,-151.0,0.000162,2]
[394687404,1763887841163,-151.0,0.000162,2]
[394687405,1763887841172,-220.525718,0.000162,2]
[394687406,1763887841181,-150.0,0.00016225,2]
[394687407,1763887841191,-150.0,0.00016225,2]
[394687408,1763887841201,-150.0,0.00016225,2]
[394687409,1763887841211,-500.0,0.00016225,2]
[394687410,1763887841220,-500.0,0.00016225,2]
[394687411,1763887841230,-219.78111574,0.00016225,2]
[394687412,1763887841239,-205.08574528,0.00016225,2]
[394687413,1763887841249,-500.0,0.00016225,2]
[394687414,1763887841362,-150.0,0.00016225,2]
[394687415,1763887841372,-150.0,0.00016234,2]
[394687416,1763887841381,-196.44177563,0.00016234,2]
[394687417,1763887841391,-150.0,0.00016234,2]
[394687418,1763887841400,-150.0,0.00016234,2]
[394687419,1763887841409,-150.0,0.00016234,2]
[394687420,1763887841418,-500.0,0.00016234,2]
[394687421,1763887841428,-150.0,0.00016234,2]
[394687422,1763887841438,-150.0,0.00016234,2]
[394687423,1763887841448,-151.01043138,0.00016234,2]
[394687424,1763887841456,-150.0,0.00016234,2]
[394687425,1763887841465,-150.0,0.00016234,2]
[394687426,1763887841474,-420.0,0.00016244,2]
[394687427,1763887841483,-545.14,0.00016245,2]
[394687428,1763887841493,-200.0,0.00016259,2]
[394687429,1763887841502,-150.0,0.00016271,2]
[394687430,1763887841511,-300.0,0.00016271,2]
[394687431,1763887841520,-500.0,0.00016271,2]
[394687432,1763887841528,-500.0,0.00016271,2]
[394687433,1763887841538,-500.0,0.00016271,2]
[394687434,1763887841546,-300.0,0.00016271,2]
[394687435,1763887841555,-500.0,0.00016271,2]
[394687436,1763887841565,-150.0,0.00016271,2]
[394687437,1763887841574,-300.0,0.00016271,2]
[394687438,1763887841583,-500.0,0.00016271,2]
[394687439,1763887841592,-500.0,0.00016271,2]
[394687440,1763887841602,-500.0,0.00016281,2]
[394687441,1763887841611,-1431.01153,0.0001634,2]
[394687442,1763887841620,-200.62726993,0.00016362,2]
[394687443,1763887841629,-156.91420768,0.00016362,2]
[394687444,1763887841638,-200.0,0.00016362,2]
[394687445,1763887841646,-500.0,0.00016362,2]
[394687446,1763887841655,-450.0,0.00016362,2]
[394687447,1763887841664,-500.0,0.00016362,2]
[394687448,1763887841673,-150.0,0.00016362,2]
[394687449,1763887841682,-150.0,0.00016371,2]
[394687450,1763887841691,-150.0,0.00016371,2]
[394687451,1763887841700,-150.0,0.00016371,2]
[394687452,1763887841710,-300.0,0.00016371,2]
[394687453,1763887841719,-203.97373392,0.00016371,2]
[394687454,1763887841729,-150.0,0.00016371,2]
[394687455,1763887841738,-150.0,0.00016371,2]
[394687456,1763887841747,-150.0,0.00016371,2]
[394687457,1763887841758,-150.0,0.00016408,2]
[394687458,1763887841767,-500.0,0.00016408,2]
[394687459,1763887841776,-500.0,0.00016408,2]
[394687460,1763887841785,-150.0,0.00016408,2]
[394687461,1763887841794,-500.0,0.00016408,2]
[394687462,1763887841805,-336.0,0.00016408,2]
[394687463,1763887841816,-498.5438882,0.00016418,2]
[394687464,1763887841827,-200.0,0.00016422,2]
[394687465,1763887841837,-500.0,0.00016438,2]
[394687466,1763887841847,-260.7654508,0.00016438,2]
[394687467,1763887841856,-500.0,0.00016438,2]
[394687468,1763887841865,-409.67684825,0.00016438,2]
[394687469,1763887841875,-500.0,0.00016438,2]
[394687470,1763887841884,-151.34408719,0.00016438,2]
[394687471,1763887841894,-500.0,0.00016438,2]
[394687472,1763887841903,-219.80604353,0.00016438,2]
[394687473,1763887841913,-261.028534,0.00016438,2]
[394687474,1763887841923,-261.028534,0.00016438,2]
[394687475,1763887841932,-261.028534,0.00016438,2]
[394687476,1763887841942,-261.028534,0.00016438,2]
[394687477,1763887841951,-150.0,0.00016438,2]
[394687478,1763887841960,-151.0,0.00016438,2]
[394687479,1763887841972,-217.004398,0.00016438,2]
[394687480,1763887841981,-151.0,0.00016438,2]
[394687481,1763887841990,-151.585645,0.00016438,2]
[394687482,1763887841999,-600.0,0.00016438,2]
[394687483,1763887842009,-259.124551,0.00016438,2]
[394687484,1763887842019,-155.660811,0.00016438,2]
[394687485,1763887842028,-157.730499,0.00016438,2]
[394687486,1763887842038,-151.0,0.00016438,2]
[394687487,1763887842047,-151.0,0.00016438,2]
[394687488,1763887842056,-151.0,0.00016438,2]
[394687489,1763887842076,-151.0,0.00016438,2]
[394687490,1763887842094,-154.33983,0.00016438,2]
[394687491,1763887842114,-151.0,0.00016438,2]
[394687492,1763887842132,-151.0,0.00016438,2]
[394687493,1763887842149,-151.0,0.00016438,2]
[394687494,1763887842167,-151.0,0.00016438,2]
[394687495,1763887842191,-151.0,0.00016438,2]
[394687496,1763887842210,-151.0,0.00016438,2]
[394687497,1763887842229,-151.0,0.00016438,2]
[394687498,1763887842247,-151.0,0.00016438,2]
[394687499,1763887842265,-151.0,0.00016438,2]
[394687500,1763887842283,-151.0,0.00016438,2]
[394687501,1763887842302,-231.713136,0.00016438,2]
[394687502,1763887842314,-159.854841,0.00016438,2]
[394687503,1763887842332,-151.0,0.00016438,2]
[394687504,1763887842345,-151.0,0.00016438,2]
[394687506,1763887842362,-151.0,0.00016438,2]
[394687507,1763887842377,-151.0,0.00016438,2]
[394687508,1763887842396,-151.0,0.00016438,2]
[394687509,1763887842412,-151.0,0.00016438,2]
[394687510,1763887842427,-151.0,0.00016438,2]
[394687511,1763887842444,-151.0,0.00016438,2]
[394687512,1763887842459,-151.0,0.00016438,2]
[394687513,1763887842474,-233.907791,0.00016438,2]
[394687514,1763887842488,-151.0,0.00016438,2]
[394687515,1763887842503,-151.0,0.00016438,2]
[394687516,1763887842519,-151.0,0.00016438,2]
[394687517,1763887842534,-151.0,0.00016438,2]
[394687518,1763887842549,-151.0,0.00016438,2]
[394687519,1763887842564,-5977.77,0.00016438,2]
[394687520,1763887842581,-575.216578,0.00016438,2]
[394687521,1763887842596,-575.216578,0.00016438,2]
[394687522,1763887842613,-575.216578,0.00016438,2]
[394687523,1763887842628,-575.216578,0.00016438,2]
[394687524,1763887842643,-575.216578,0.00016438,2]
[394687525,1763887842657,-575.216578,0.00016438,2]
[394687526,1763887842672,-575.216578,0.00016438,2]
[394687527,1763887842687,-575.216578,0.00016438,2]
[394687528,1763887842702,-153.042065,0.00016438,2]
[394687529,1763887842717,-164.386143,0.00016438,2]
[394687530,1763887842732,-151.0,0.00016438,2]
[394687531,1763887842747,-269.007336,0.00016438,2]
[394687532,1763887842762,-151.0,0.00016438,2]
[394687533,1763887842778,-151.0,0.00016438,2]
[394687534,1763887842792,-151.0,0.00016438,2]
[394687535,1763887842808,-151.0,0.00016438,2]
[394687536,1763887842823,-151.0,0.00016438,2]
[394687537,1763887842838,-151.0,0.00016438,2]
[394687538,1763887842853,-152.002483,0.00016438,2]
[394687539,1763887842869,-154.339724,0.00016438,2]
[394687540,1763887842885,-151.0,0.00016438,2]
[394687541,1763887842899,-151.0,0.00016438,2]
[394687542,1763887842914,-151.0,0.00016438,2]
[394687543,1763887842928,-151.0,0.00016438,2]
[394687544,1763887842943,-151.0,0.00016438,2]
[394687545,1763887842958,-151.0,0.00016438,2]
[394687546,1763887842973,-151.0,0.00016438,2]
[394687547,1763887842989,-184.381471,0.00016438,2]
[394687548,1763887843005,-151.0,0.00016438,2]
[394687551,1763887843020,-151.0,0.00016438,2]
[394687553,1763887843035,-151.0,0.00016438,2]
[394687556,1763887843049,-151.0,0.00016438,2]
[394687558,1763887843064,-151.0,0.00016438,2]
[394687560,1763887843079,-151.0,0.00016438,2]
[394687561,1763887843094,-151.0,0.00016438,2]
[394687562,1763887843110,-151.0,0.00016438,2]
[394687563,1763887843124,-151.0,0.00016438,2]
[394687564,1763887843139,-151.0,0.00016438,2]
[394687565,1763887843154,-277.0,0.00016438,2]
[394687567,1763887843169,-151.0,0.00016438,2]
[394687568,1763887843183,-156.655198,0.00016438,2]
[394687569,1763887843199,-151.0,0.00016438,2]
[394687570,1763887843214,-151.0,0.00016438,2]
[394687571,1763887843228,-151.0,0.00016438,2]
[394687572,1763887843406,-151.0,0.00016438,2]
[394687573,1763887843415,-151.0,0.00016438,2]
[394687574,1763887843424,-151.0,0.00016438,2]
[394687575,1763887843433,-151.0,0.00016438,2]
[394687576,1763887843442,-151.0,0.00016438,2]
[394687577,1763887843452,-229.626784,0.00016438,2]
[394687578,1763887843461,-151.0,0.00016438,2]
[394687579,1763887843470,-155.534389,0.00016438,2]
[394687580,1763887843479,-151.0,0.00016438,2]
[394687581,1763887843489,-151.0,0.00016438,2]
[394687582,1763887843498,-151.0,0.00016438,2]
[394687583,1763887843510,-277.045049,0.00016438,2]
[394687584,1763887843519,-277.045049,0.00016438,2]
[394687585,1763887843528,-277.045049,0.00016438,2]
[394687586,1763887843536,-277.045049,0.00016438,2]
[394687587,1763887843546,-277.045049,0.00016438,2]
[394687588,1763887843556,-277.045049,0.00016438,2]
[394687589,1763887843565,-151.0,0.00016438,2]
[394687590,1763887843576,-156.726028,0.00016438,2]
[394687591,1763887843586,-277.045049,0.00016438,2]
[394687592,1763887843596,-151.0,0.00016438,2]
[394687593,1763887843605,-277.045049,0.00016438,2]
[394687594,1763887843615,-153.200836,0.00016438,2]
[394687595,1763887843624,-277.045049,0.00016438,2]
[394687596,1763887843633,-151.0,0.00016438,2]
[394687597,1763887843642,-277.045049,0.00016438,2]
[394687598,1763887843652,-182.074447,0.00016438,2]
[394687599,1763887843661,-277.045049,0.00016438,2]
[394687600,1763887843671,-277.045049,0.00016438,2]
[394687601,1763887843680,-151.0,0.00016438,2]
[394687602,1763887843690,-151.0,0.00016438,2]
[394687603,1763887843699,-151.0,0.00016438,2]
[394687604,1763887843709,-154.605475,0.00016438,2]
[394687605,1763887843718,-410.73706,0.00016438,2]
[394687606,1763887843729,-410.73706,0.00016438,2]
[394687607,1763887843738,-410.73706,0.00016438,2]
[394687608,1763887843747,-151.0,0.00016438,2]
[394687609,1763887843757,-151.0,0.00016438,2]
[394687610,1763887843766,-410.73706,0.00016438,2]
[394687611,1763887843776,-151.0,0.00016438,2]
[394687612,1763887843785,-410.73706,0.00016438,2]
[394687613,1763887843794,-410.73706,0.00016438,2]
[394687614,1763887843803,-161.063099,0.00016438,2]
[394687615,1763887843814,-410.73706,0.00016438,2]
[394687616,1763887843823,-410.73706,0.00016438,2]
[394687617,1763887843832,-410.73706,0.00016438,2]
[394687618,1763887843841,-410.73706,0.00016438,2]
[394687619,1763887843851,-410.73706,0.00016438,2]
[394687620,1763887843860,-410.73706,0.00016438,2]
[394687621,1763887843870,-154.344909,0.00016438,2]
[394687622,1763887843879,-151.0,0.00016438,2]
[394687623,1763887843889,-151.0,0.00016438,2]
[394687624,1763887843898,-161.394305,0.00016438,2]
[394687625,1763887843908,-789.746598,0.00016438,2]
[394687626,1763887843917,-789.746598,0.00016438,2]
[394687627,1763887843926,-789.746598,0.00016438,2]
[394687628,1763887843935,-151.0,0.00016438,2]
[394687629,1763887843945,-789.746598,0.00016438,2]
[394687630,1763887843954,-789.746598,0.00016438,2]
[394687631,1763887843963,-251.952697,0.00016438,2]
[394687632,1763887843972,-789.746598,0.00016438,2]
[394687633,1763887843981,-789.746598,0.00016438,2]
[394687634,1763887843990,-789.746598,0.00016438,2]
[394687635,1763887844000,-789.746598,0.00016438,2]
[394687636,1763887844009,-156.761288,0.00016438,2]
[394687637,1763887844019,-177.23244,0.00016438,2]
[394687638,1763887844028,-789.746598,0.00016438,2]
[394687639,1763887844039,-177.23244,0.00016438,2]
[394687640,1763887844048,-789.746598,0.00016438,2]
[394687641,1763887844057,-177.23244,0.00016438,2]